bitfinex/quotes_ETHUSD_20240822
["timestamp","ask_amount","ask_price","bid_price","bid_amount"]
[1724295331831,3.88,2596.7,2596.3,2.31097]
[1724295332035,3.88,2596.7,2596.6,2.31071]
[1724295332236,3.88,2596.7,2596.3,5.247206]
[1724295332237,4.12,2597.2,2596.9,2.31042]
[1724295332418,4.12,2597.2,2597.0,2.31035]
[1724295332728,4.12,2597.2,2596.3,5.247206]
[1724295333030,3.88446788,2597.6,2597.0,2.31028]
[1724295333235,3.88446788,2597.6,2597.3,2.31006]
[1724295333733,3.88446788,2597.6,2597.4,2.30999]
[1724295333932,3.88446788,2597.6,2597.3,2.31006]
[1724295334105,3.88446788,2597.6,2597.5,2.30991]
[1724295334648,3.88446788,2597.6,2597.1,4.785]
[1724295334794,0.00446788,2597.6,2597.5,4.61982]
[1724295335507,0.00446788,2597.6,2597.5,2.30991]
[1724295335923,0.00446788,2597.6,2597.5,4.61982]
[1724295336129,0.00446788,2597.6,2597.5,9.40482]
[1724295336335,0.00446788,2597.6,2597.5,10.345302]
[1724295336707,0.00446788,2597.6,2597.5,12.655212]
[1724295336908,0.00446788,2597.6,2597.5,17.876522]
[1724295337117,0.00446788,2597.6,2597.5,18.566612]
[1724295337339,0.00446788,2597.6,2597.5,7.921702]
[1724295337538,0.00446788,2597.6,2597.5,4.61982]
[1724295337720,0.00446788,2597.6,2597.5,2.30991]
[1724295338389,0.00446788,2597.6,2597.1,2.31026]
[1724295338639,0.00446788,2597.6,2596.6,4.785]
[1724295338819,0.00446788,2597.6,2596.7,2.31055]
[1724295339018,0.00446788,2597.6,2596.9,2.31044]
[1724295339245,0.00446788,2597.6,2597.0,2.31033]
[1724295339442,0.00446788,2597.6,2596.2,4.785]
[1724295339594,0.00446788,2597.6,2596.4,2.31086]
[1724295339936,2.30992,2597.5,2596.4,2.31086]
[1724295340138,3.88,2597.3,2596.4,2.31082]
[1724295340336,3.88,2597.3,2596.4,2.31086]
[1724295340544,3.88,2597.3,2596.1,2.31112]
[1724295340712,2.4009,2596.8,2595.7,2.31149]
[1724295341039,4.71146,2596.8,2595.8,2.3114]
[1724295341193,2.31062,2596.7,2595.4,4.785]
[1724295341394,3.88,2596.5,2595.8,2.31141]
[1724295341607,3.88,2596.5,2595.4,7.09675]
[1724295341812,4.12,2596.3,2595.0,4.785]
[1724295342023,0.6566,2596.2,2595.4,2.31169]
[1724295342229,0.6566,2596.2,2595.1,0.5171]
[1724295342435,0.6566,2596.2,2595.6,2.31152]
[1724295342636,0.6566,2596.2,2595.4,2.31177]
[1724295342951,2.31125,2596.0,2595.0,7.09711]
[1724295343244,0.6566,2596.2,2594.6,4.785]
[1724295343245,2.78882,2596.1,2594.6,4.785]
[1724295343448,0.47766,2596.1,2595.2,2.31193]
[1724295343642,0.47766,2596.1,2594.9,2.31219]
[1724295343943,0.344533,2596.0,2595.1,2.31197]
[1724295344116,0.344533,2596.0,2595.2,2.31195]
[1724295345248,0.6566,2596.2,2595.7,2.3115]
[1724295345399,4.12,2596.3,2595.7,2.3115]
[1724295346014,4.7569,2596.4,2595.4,2.31177]
[1724295346015,2.31045,2596.9,2596.1,2.31108]
[1724295346318,2.31045,2596.9,2596.2,2.31105]
[1724295346639,2.3981,2597.0,2596.4,2.31085]
[1724295346936,2.3981,2597.0,2595.8,9.35747]
[1724295346937,4.94827,2597.0,2596.3,2.31096]
[1724295347167,2.63791,2597.0,2596.2,2.31105]
[1724295347366,3.88,2597.1,2596.7,2.31061]
[1724295347573,3.88,2597.1,2596.5,2.31076]
[1724295347728,3.88,2597.1,2596.5,2.772956]
[1724295347927,3.88,2597.1,2596.5,2.3108]
[1724295348156,3.88,2597.1,2596.6,2.3107]
[1724295348359,3.88,2597.1,2596.8,2.31046]
[1724295348737,3.88,2597.1,2596.4,2.31086]
[1724295348938,0.388,2597.0,2596.2,4.785]
[1724295349139,3.88,2597.1,2596.2,4.785]
[1724295349140,3.88,2597.1,2596.3,2.31092]
[1724295349561,3.88,2597.1,2596.2,4.785]
[1724295349874,3.88,2597.1,2596.4,2.31086]
[1724295350080,3.88,2597.1,2596.8,2.31045]
[1724295350280,3.88,2597.1,2596.7,2.31062]
[1724295350570,4.268,2597.1,2596.5,2.31077]
[1724295350772,3.88,2597.1,2596.6,2.31068]
[1724295350972,3.88,2597.1,2596.5,2.31077]
[1724295351199,3.88,2597.1,2595.8,2.31135]
[1724295351200,2.4623,2596.7,2595.8,2.31135]
[1724295351375,6.5823,2596.7,2594.9,0.231219]
[1724295351682,2.31124,2596.0,2595.1,2.31203]
[1724295351883,2.31107,2596.2,2595.2,2.31193]
[1724295352382,2.31107,2596.2,2595.5,2.31168]
[1724295352592,2.31113,2596.2,2595.3,2.31186]
[1724295352742,3.88,2596.3,2595.0,4.785]
[1724295353050,2.31117,2596.1,2595.3,2.31184]
[1724295353250,6.810064,2596.3,2595.1,2.8136319]
[1724295353251,2.31144,2595.8,2595.1,2.31201]
[1724295353486,2.31144,2595.8,2595.0,4.785]
[1724295353686,4.499084,2596.3,2594.3,2.31274]
[1724295353687,2.31199,2595.2,2594.3,2.31274]
[1724295353838,2.4623,2595.5,2594.3,2.31274]
[1724295353839,2.31206,2595.1,2594.3,2.31274]
[1724295354035,2.31206,2595.1,2594.4,2.31266]
[1724295354289,2.31188,2595.3,2594.5,2.31258]
[1724295354438,8.65402,2595.5,2594.3,2.31276]
[1724295354439,2.31183,2595.4,2594.6,2.31248]
[1724295354635,8.65399,2595.5,2594.6,2.31248]
[1724295354894,8.65399,2595.5,2594.8,2.3123]
[1724295355104,9.75054,2595.5,2594.8,2.3123]
[1724295355389,9.75054,2595.5,2594.8,2.31229]
[1724295355390,3.88,2595.5,2594.8,2.31229]
[1724295355688,3.88,2595.5,2594.6,7.09749]
[1724295355846,3.88,2595.5,2594.6,2.31246]
[1724295355847,2.31194,2595.3,2594.6,2.31246]
[1724295356248,2.31194,2595.3,2594.5,2.31257]
[1724295356447,3.88,2595.5,2594.9,2.31222]
[1724295356752,3.88,2595.5,2595.0,7.09708]
[1724295357210,3.88,2595.5,2594.8,2.31229]
[1724295357728,3.88,2595.5,2594.9,2.31222]
[1724295357931,2.31194,2595.3,2594.6,7.09748]
[1724295358126,2.31194,2595.3,2594.6,2.31248]
[1724295358330,0.388,2595.4,2594.6,2.31248]
[1724295358638,2.31188,2595.3,2594.5,2.31254]
[1724295359202,2.31206,2595.1,2594.3,2.31275]
[1724295359426,2.31232,2594.8,2593.8,7.09818]
[1724295359626,4.588166,2595.0,2593.8,4.785]
[1724295359627,2.31223,2594.9,2593.8,4.785]
[1724295359971,4.12,2595.0,2594.1,2.31285]
[1724295359972,6.43214,2595.0,2594.1,2.31285]
[1724295360104,4.12,2595.0,2594.6,2.31249]
[1724295360434,3.88,2595.5,2594.9,2.31216]
[1724295360639,3.88,2595.5,2595.1,2.31203]
[1724295361006,3.88,2595.5,2595.2,2.31195]
[1724295361242,2.31085,2596.5,2595.2,2.31195]
[1724295361243,2.4075,2596.1,2595.4,2.31178]
[1724295361546,2.4075,2596.1,2595.3,2.31186]
[1724295361547,2.31125,2596.0,2595.3,2.31186]
[1724295361763,2.31125,2596.0,2595.4,2.31177]
[1724295362517,2.31125,2596.0,2595.2,2.31193]
[1724295362904,0.40123108,2595.9,2595.2,2.31193]
[1724295363239,0.40123108,2595.9,2595.4,2.3117]
[1724295363603,0.40123108,2595.9,2595.6,2.31154]
[1724295363918,0.40123108,2595.9,2595.8,2.31142]
[1724295364131,3.88,2596.3,2595.8,2.31142]
[1724295364333,3.88,2596.3,2596.0,2.31121]
[1724295364541,2.4756,2597.0,2596.2,2.31107]
[1724295364708,0.709607,2597.0,2596.4,2.31081]
[1724295365071,3.88,2597.2,2596.6,2.3107]
[1724295365223,3.88,2597.2,2596.8,2.31047]
[1724295365437,3.88,2597.2,2596.6,7.09569]
[1724295365744,3.88,2597.2,2596.8,2.31049]
[1724295365945,0.00446788,2597.6,2597.2,2.31017]
[1724295366553,0.00446788,2597.6,2597.0,2.31032]
[1724295366554,2.31428788,2597.6,2597.0,2.31029]
[1724295366702,0.00446788,2597.6,2597.0,2.31028]
[1724295367224,0.00446788,2597.6,2597.3,2.31007]
[1724295367555,0.00446788,2597.6,2597.3,2.31002]
[1724295367717,0.00446788,2597.6,2597.1,2.31023]
[1724295367917,0.00446788,2597.6,2597.0,4.785]
[1724295368376,0.00446788,2597.6,2596.9,2.31038]
[1724295368708,2.31024,2597.2,2596.5,2.31074]
[1724295369050,2.3623,2597.5,2596.5,2.31074]
[1724295369051,2.31017,2597.3,2596.5,2.31074]
[1724295369262,2.31017,2597.3,2596.3,2.31093]
[1724295369263,2.31032,2597.1,2596.4,2.31088]
[1724295369468,10.31011,2597.3,2596.3,2.31093]
[1724295369469,2.31019,2597.2,2596.5,2.31074]
[1724295369756,2.31019,2597.2,2596.6,2.3107]
[1724295370046,8.0,2597.3,2596.7,2.31054]
[1724295370446,8.0,2597.3,2596.9,2.31038]
[1724295370922,8.0,2597.3,2597.1,2.3102]
[1724295371127,3.88,2597.3,2596.9,2.31042]
[1724295371356,3.88,2597.3,2597.1,2.31026]
[1724295371950,3.88,2597.3,2597.1,2.3102]
[1724295372736,0.00446788,2597.6,2597.2,2.31018]
[1724295373053,0.00446788,2597.6,2597.0,2.31028]
[1724295373264,0.00446788,2597.6,2597.4,2.30994]
[1724295373547,0.00446788,2597.6,2597.5,2.30991]
[1724295374122,0.00446788,2597.6,2597.5,4.61982]
[1724295374312,0.00446788,2597.6,2597.5,5.400811]
[1724295375111,0.00446788,2597.6,2597.5,7.710721]
[1724295375543,0.00446788,2597.6,2597.5,15.519331]
[1724295375882,0.00446788,2597.6,2597.5,13.209421]
[1724295376749,0.00446788,2597.6,2597.5,12.134511]
[1724295377253,0.00446788,2597.6,2597.5,14.444421]
[1724295378260,0.00446788,2597.6,2597.5,14.994421]
[1724295380010,0.00446788,2597.6,2597.5,9.40482]
[1724295380212,0.00446788,2597.6,2597.5,7.09491]
[1724295380850,0.00446788,2597.6,2597.5,9.40482]
[1724295381065,0.00446788,2597.6,2597.5,11.71473]
[1724295381850,0.00446788,2597.6,2597.5,12.26473]
[1724295382059,0.00446788,2597.6,2597.5,11.937206]
[1724295382619,1.56347516,2600.2,2597.5,11.937206]
[1724295382620,0.52541011,2600.1,2599.2,0.9862]
[1724295382842,0.52541011,2600.1,2598.7,2.30884]
[1724295382843,2.30689,2600.9,2600.8,0.7]
[1724295382844,1.84262252,2600.9,2600.8,0.7]
[1724295383048,0.1242526,2602.7,2600.8,0.7]
[1724295383049,2.28696031,2601.2,2601.1,6.92013]
[1724295383313,0.1242526,2602.7,2601.3,0.7]
[1724295383532,2.73575307,2604.6,2602.9,2.30508]
[1724295383726,2.30343,2604.9,2604.2,4.785]
[1724295383727,6.18343,2604.9,2604.2,4.785]
[1724295384055,3.88,2604.9,2604.2,4.785]
[1724295384455,3.88,2604.9,2603.9,5.306]
[1724295384831,3.88,2604.9,2603.9,7.6102]
[1724295385031,3.88,2604.9,2604.4,5.306]
[1724295385232,0.388,2604.8,2604.0,3.0]
[1724295385472,4.12,2604.5,2603.1,7.61091]
[1724295385768,4.12,2604.5,2603.4,2.30465]
[1724295385972,4.12,2604.5,2603.9,5.306]
[1724295386131,4.12,2604.5,2603.4,5.306]
[1724295386331,0.0109,2604.4,2603.4,5.306]
[1724295386563,4.12,2604.5,2603.4,5.306]
[1724295386564,0.388,2604.8,2603.4,7.61061]
[1724295386767,0.388,2604.8,2602.9,3.0]
[1724295386768,0.388,2604.8,2603.7,2.30437]
[1724295386972,0.388,2604.8,2603.8,2.30431]
[1724295387228,0.388,2604.8,2603.7,5.306]
[1724295387376,3.88,2604.9,2604.8,2.30343]
[1724295387695,0.1242526,2605.3,2604.5,5.306]
[1724295387902,0.1242526,2605.3,2604.4,2.30374]
[1724295388198,3.88,2605.0,2603.5,3.0]
[1724295388349,3.88,2605.0,2604.3,2.30386]
[1724295388560,3.88,2605.0,2603.7,5.306]
[1724295388888,3.88,2605.0,2604.2,2.30394]
[1724295389050,0.388,2604.9,2604.2,2.30394]
[1724295389235,3.88,2605.0,2604.7,2.3035]
[1724295389532,3.88,2605.0,2604.8,2.30335]
[1724295389732,0.1242526,2605.3,2604.8,2.30342]
[1724295389948,0.1242526,2605.3,2602.9,2.30511]
[1724295390149,2.2732,2605.2,2604.3,2.30387]
[1724295390449,2.3031,2605.2,2604.0,2.30411]
[1724295390649,2.3031,2605.2,2603.4,5.306]
[1724295390650,8.0,2604.8,2603.4,2.30462]
[1724295390852,8.0,2604.8,2604.1,2.30399]
[1724295391103,3.88,2604.8,2604.6,2.30355]
[1724295391425,0.1242526,2605.3,2605.1,6.9094]
[1724295391624,0.1242526,2605.3,2605.1,12.2154]
[1724295391829,0.1242526,2605.3,2605.2,4.60616]
[1724295392036,0.1242526,2605.3,2605.2,5.15616]
[1724295392254,0.1242526,2605.3,2605.2,11.81250094]
[1724295392400,2.30092,2607.7,2606.5,2.30186]
[1724295392602,3.88,2607.2,2605.8,2.30252]
[1724295392813,4.12,2606.8,2605.8,2.30252]
[1724295392984,4.12,2606.8,2605.5,7.60874]
[1724295393347,0.412,2606.7,2605.5,5.306]
[1724295393486,4.12,2606.8,2605.5,5.306]
[1724295393487,1.68457018,2606.8,2605.6,2.85269]
[1724295393686,1.68457018,2606.8,2605.6,2.30268]
[1724295394004,1.68457018,2606.8,2606.3,2.3021]
[1724295394350,1.68457018,2606.8,2605.6,3.0]
[1724295394527,1.68457018,2606.8,2605.7,2.30258]
[1724295394528,2.30177,2606.7,2605.7,2.30258]
[1724295394685,2.30177,2606.7,2605.2,5.306]
[1724295394686,0.39863402,2606.6,2605.2,8.306]
[1724295394883,3.88,2607.2,2606.4,2.30202]
[1724295395083,3.88,2607.2,2606.5,2.30191]
[1724295395326,3.88,2607.2,2606.3,2.30211]
[1724295395534,3.88,2607.2,2606.2,5.306]
[1724295395535,3.88,2607.2,2606.6,5.306]
[1724295395691,0.388,2607.1,2606.5,2.30193]
[1724295396032,0.388,2607.1,2605.6,2.30264]
[1724295396331,6.2159,2607.2,2605.3,2.2548]
[1724295396332,3.88,2607.2,2606.1,5.306]
[1724295396837,3.88,2607.2,2605.6,2.30271]
[1724295396838,2.30168,2606.8,2605.6,2.30271]
[1724295396981,3.88,2606.4,2604.7,5.306]
[1724295397183,3.88,2606.4,2605.0,2.30325]
[1724295397184,0.07668623,2606.3,2605.0,2.30325]
[1724295397424,2.30263,2605.8,2604.7,5.306]
[1724295397605,2.37896623,2606.2,2604.8,2.30335]
[1724295397807,2.30254,2605.9,2605.1,2.30316]
[1724295398010,2.54019662,2606.1,2605.2,2.30307]
[1724295398209,0.23789662,2606.1,2605.3,2.30298]
[1724295398381,3.88,2606.4,2605.1,5.306]
[1724295398587,1.7443035,2606.4,2606.0,2.3023]
[1724295398839,1.7443035,2606.4,2605.5,7.60876]
[1724295398998,2.2966,2606.7,2606.3,2.3021]
[1724295399204,2.30124,2607.3,2605.9,5.306]
[1724295399205,2.3387,2607.3,2605.9,5.306]
[1724295399535,0.230124,2607.2,2606.4,2.30198]
[1724295399700,2.531444,2607.2,2606.4,2.30198]
[1724295400031,2.3387,2607.3,2607.0,2.30146]
[1724295400235,2.3387,2607.3,2606.6,2.30183]
[1724295400445,2.3387,2607.3,2606.5,2.30187]
[1724295400727,2.30142,2607.1,2606.3,2.3021]
[1724295401034,0.230142,2607.0,2606.0,3.02656633]
[1724295401337,2.3387,2607.3,2606.6,2.30181]
[1724295401642,2.3387,2607.3,2606.7,2.30174]
[1724295402006,2.30141,2607.1,2606.3,2.30209]
[1724295402250,2.61187623,2607.2,2606.1,2.30225]
[1724295402384,2.3021,2606.4,2605.5,2.30273]
[1724295402587,0.23021,2606.3,2605.5,2.30273]
[1724295402951,2.30198,2606.5,2605.7,2.30263]
[1724295403536,2.30176,2606.7,2605.8,2.30254]
[1724295403746,3.45343,2606.7,2605.9,2.30243]
[1724295403892,2.30185,2606.6,2605.8,2.30254]
[1724295404093,8.42167,2606.8,2605.3,2.30295]
[1724295404297,2.3023,2606.1,2605.3,2.30297]
[1724295404508,1.14110845,2606.0,2604.9,2.30333]
[1724295404719,2.30289,2605.5,2604.7,2.30346]
[1724295405047,0.230289,2605.5,2604.7,2.30346]
[1724295405245,0.230289,2605.5,2604.9,2.30333]
[1724295405540,2.533119,2605.5,2604.7,2.30346]
[1724295405860,5.306,2605.7,2603.9,2.30417]
[1724295405990,2.30355,2604.7,2603.9,2.30417]
[1724295406201,2.38010623,2604.9,2603.9,2.30417]
[1724295406435,0.23801062,2604.8,2603.9,2.30417]
[1724295406614,0.23801062,2604.8,2603.9,2.30418]
[1724295406816,0.23801062,2604.8,2603.6,7.61045]
[1724295407015,3.31,2605.1,2604.6,2.3036]
[1724295407222,3.31,2605.1,2604.5,2.30367]
[1724295407529,5.3739,2605.9,2605.0,2.30326]
[1724295407731,3.0,2605.8,2605.0,2.30326]
[1724295407944,2.30275,2605.6,2604.6,2.30357]
[1724295408355,0.83739,2605.7,2604.0,5.306]
[1724295408356,0.83739,2605.7,2604.4,2.30379]
[1724295408648,2.30276,2605.6,2604.7,2.30344]
[1724295408958,2.30291,2605.4,2604.7,2.30344]
[1724295409254,0.230291,2605.3,2604.7,2.30344]
[1724295409901,0.230291,2605.3,2604.9,2.30332]
[1724295410107,2.303,2605.3,2604.4,2.30372]
[1724295410331,3.14003,2605.7,2604.4,2.30372]
[1724295410543,2.3739,2605.0,2604.2,2.30396]
[1724295410752,2.30355,2604.7,2603.8,4.60855]
[1724295410955,2.30355,2604.7,2603.5,0.07679072]
[1724295410956,0.23802362,2604.7,2603.5,0.07679072]
[1724295411249,2.81,2605.2,2604.5,2.30367]
[1724295411412,2.81,2605.2,2604.6,2.30355]
[1724295411912,2.81,2605.2,2604.5,2.3037]
[1724295412114,2.81,2605.2,2604.7,2.30346]
[1724295412368,2.81,2605.2,2604.5,2.30364]
[1724295412509,3.145501,2605.1,2604.3,2.30385]
[1724295412711,0.842301,2605.1,2604.5,2.3037]
[1724295412966,0.842301,2605.1,2604.6,2.30355]
[1724295413134,0.842301,2605.1,2604.5,2.30364]
[1724295413313,3.145491,2605.1,2604.3,4.60767]
[1724295413673,2.30319,2605.1,2604.4,0.55]
[1724295413849,0.07668623,2605.1,2604.1,2.30401]
[1724295414052,2.30336,2604.9,2604.2,2.30395]
[1724295414269,0.61966862,2605.1,2604.1,2.30398]
[1724295414407,0.61966862,2605.1,2604.3,2.30386]
[1724295414613,2.30326,2605.0,2604.3,2.30386]
[1724295415074,2.30345,2604.8,2604.1,2.30398]
[1724295415228,0.230345,2604.7,2603.9,2.30422]
[1724295415563,0.230345,2604.7,2604.2,2.30395]
[1724295415858,2.38004623,2604.9,2604.0,2.30412]
[1724295416068,0.61966862,2605.1,2604.0,2.30412]
[1724295416375,2.2744,2604.9,2603.6,0.07678618]
[1724295416509,2.761215,2604.8,2604.1,2.30399]
[1724295416917,0.61966862,2605.1,2604.6,2.30355]
[1724295417222,0.61966862,2605.1,2604.5,2.30362]
[1724295417455,0.61966862,2605.1,2604.6,2.30353]
[1724295417899,0.61966862,2605.1,2604.7,2.30352]
[1724295418067,0.61966862,2605.1,2604.6,2.30353]
[1724295418271,0.61966862,2605.1,2604.4,4.60752]
[1724295418471,0.61966862,2605.1,2603.9,2.30415]
[1724295418472,0.34296686,2605.0,2604.2,2.3039]
[1724295418671,0.34296686,2605.0,2604.4,2.30378]
[1724295419087,0.61966862,2605.1,2604.6,2.30355]
[1724295419290,2.81,2605.2,2604.6,2.30355]
[1724295419486,2.81,2605.2,2604.1,5.345]
[1724295419689,2.81,2605.2,2604.8,2.30337]
[1724295419997,2.81,2605.2,2604.7,2.3035]
[1724295420194,2.81,2605.2,2604.8,2.30341]
[1724295420398,2.81,2605.2,2604.6,2.30355]
[1724295420602,2.3284,2605.9,2605.2,2.30302]
[1724295420896,4.63093,2605.9,2605.2,2.30302]
[1724295421212,2.3284,2605.9,2605.3,0.07675597]
[1724295421426,2.3284,2605.9,2605.3,2.37974597]
[1724295421633,3.403483,2605.9,2605.3,0.07675597]
[1724295421922,3.403483,2605.9,2605.3,2.37974598]
[1724295422131,2.3284,2605.9,2605.3,2.37973598]
[1724295422289,6.12,2606.1,2605.6,2.30266]
[1724295422633,6.12,2606.1,2605.4,5.15567]
[1724295422790,6.12,2606.1,2605.4,2.85283]
[1724295422975,2.3024,2606.0,2605.2,2.30303]
[1724295423171,6.732,2606.1,2605.2,2.30303]
[1724295423375,5.93102643,2606.1,2605.0,5.30325]
[1724295423576,5.93102643,2606.1,2605.2,2.30307]
[1724295423577,2.30243,2606.0,2605.2,2.30307]
[1724295423789,0.82334564,2605.9,2605.2,2.30307]
[1724295424007,5.93102643,2606.1,2605.4,2.30289]
[1724295424206,2.30239,2606.0,2605.2,2.30301]
[1724295424415,2.30239,2606.0,2603.8,1.90239754]
[1724295424416,2.30306,2605.3,2604.6,2.30354]
[1724295424640,2.47968623,2605.9,2603.9,2.2922]
[1724295424641,2.30324,2605.1,2603.9,2.2922]
[1724295424775,2.30273,2605.6,2603.9,2.2922]
[1724295424776,2.30303,2605.3,2603.9,2.2922]
[1724295424972,0.230303,2605.2,2604.4,2.30372]
[1724295425180,2.533383,2605.2,2604.5,2.30369]
[1724295425372,2.533383,2605.2,2604.4,2.30372]
[1724295425373,2.77978923,2605.2,2604.4,2.30375]
[1724295425681,0.27797892,2605.1,2604.1,2.30405]
[1724295425882,0.27797892,2605.1,2604.2,2.30395]
[1724295426088,0.27797892,2605.1,2604.3,2.30379]
[1724295426286,2.30327,2605.0,2604.3,2.30379]
[1724295426478,0.27797892,2605.1,2604.5,2.30369]
[1724295426684,2.58115892,2605.1,2604.3,2.30379]
[1724295426926,3.03903689,2605.0,2604.3,2.30379]
[1724295427235,3.03903689,2605.0,2604.1,3.10125734]
[1724295427236,3.03903689,2605.0,2604.2,2.30396]
[1724295427463,3.03903689,2605.0,2604.3,1.33549132]
[1724295427464,2.30336,2604.9,2604.3,1.33549132]
[1724295427579,0.07668623,2604.9,2604.7,0.79724734]
[1724295427784,0.07668623,2604.9,2604.5,1.60319672]
[1724295427785,5.30339,2604.9,2604.5,0.79724734]
[1724295428033,2.30361,2604.6,2604.2,0.79724734]
[1724295428202,2.30357,2604.7,2604.3,3.33943142]
[1724295428523,0.230357,2604.6,2604.1,3.10121734]
[1724295428790,5.09021535,2605.1,2604.3,0.79724734]
[1724295428921,5.09021535,2605.1,2604.2,7.21321359]
[1724295428922,5.09024535,2605.1,2604.8,0.79724734]
[1724295429260,5.09024535,2605.1,2604.6,0.79724734]
[1724295429261,2.30352,2604.7,2604.6,0.79724734]
[1724295429459,4.60704,2604.7,2604.6,3.33896458]
[1724295429597,5.06773,2604.7,2604.6,1.33558583]
[1724295430063,0.46069,2604.7,2604.6,3.33916933]
[1724295430200,2.78700535,2605.1,2604.6,3.33916933]
[1724295430527,2.30343,2604.8,2604.7,3.33923532]
[1724295430733,2.30343,2604.8,2604.7,3.28923532]
[1724295430901,2.30352,2604.7,2604.5,0.79948187]
[1724295431100,2.30352,2604.7,2604.6,2.00358872]
[1724295431852,7.1065,2604.5,2604.4,0.79948187]
[1724295432033,2.30404,2604.2,2604.0,0.79948187]
[1724295432235,3.20975,2604.5,2604.1,2.00389921]
[1724295432460,0.530343,2604.8,2604.2,2.00389921]
[1724295432724,0.530343,2604.8,2604.3,2.00389921]
[1724295432997,0.530343,2604.8,2604.5,0.79948187]
[1724295433298,5.306,2605.6,2604.6,2.00389921]
[1724295433299,2.30312,2605.2,2604.6,2.00389921]
[1724295433505,2.30312,2605.2,2604.7,2.00389921]
[1724295433799,5.0788,2605.3,2604.7,2.00389921]
[1724295433800,2.30326,2605.0,2604.8,2.00340559]
[1724295434003,2.30326,2605.0,2604.6,0.79948187]
[1724295434224,2.50902643,2605.1,2604.8,2.4986]
[1724295434366,2.30236,2606.1,2605.2,2.30302]
[1724295434548,2.30238,2606.0,2605.3,2.80254075]
[1724295434896,0.991354,2606.0,2605.5,0.79912029]
[1724295435117,0.991354,2606.0,2605.6,2.00342046]
[1724295435245,3.04,2606.1,2605.9,0.79912029]
[1724295435443,3.04,2606.1,2605.8,0.79912029]
[1724295435681,3.04,2606.1,2605.9,2.80143404]
[1724295435893,3.04,2606.1,2606.0,2.00231375]
[1724295436500,3.04,2606.1,2605.9,0.79912029]
[1724295436699,3.04,2606.1,2605.6,3.90093058]
[1724295436700,5.64635,2606.1,2605.7,0.79912029]
[1724295436906,5.64635,2606.1,2605.5,0.79912029]
[1724295437069,3.344,2606.1,2605.6,2.00246091]
[1724295437247,3.344,2606.1,2605.5,0.79912029]
[1724295437628,3.344,2606.1,2605.2,0.79912029]
[1724295437629,0.56462,2606.0,2605.2,0.79912029]
[1724295437765,2.30256,2605.8,2605.1,0.79912029]
[1724295438111,2.30257,2605.8,2604.9,3.10246029]
[1724295438244,2.30267,2605.7,2605.0,2.80180236]
[1724295438447,0.230267,2605.6,2605.0,2.30325]
[1724295438647,0.230267,2605.6,2604.9,2.30334]
[1724295438898,2.533007,2605.6,2604.8,5.30343]
[1724295439207,2.533007,2605.6,2604.6,3.10272029]
[1724295439208,2.30283,2605.5,2604.6,3.10272029]
[1724295439414,2.30308,2605.2,2604.7,2.00281071]
[1724295439699,2.30317,2605.1,2604.4,2.30377]
[1724295439883,0.230317,2605.0,2604.4,2.30377]
[1724295440999,0.230317,2605.0,2604.2,2.3039]
[1724295441148,0.230317,2605.0,2604.4,2.30378]
[1724295442006,0.230317,2605.0,2604.5,2.30367]
[1724295442192,3.04,2605.3,2605.0,2.30318]
[1724295442707,2.81,2605.8,2605.3,2.30296]
[1724295443452,2.81,2605.8,2605.1,2.30311]
[1724295443696,0.281,2605.7,2605.3,2.30298]
[1724295443898,2.58366,2605.7,2604.9,2.30329]
[1724295444098,0.539366,2605.6,2604.4,8.306]
[1724295444309,0.539366,2605.6,2605.2,2.30308]
[1724295444467,0.281,2605.7,2605.2,2.30308]
[1724295444809,0.281,2605.7,2605.4,2.30289]
[1724295445156,0.281,2605.7,2605.2,2.30302]
[1724295445679,2.81,2605.8,2605.2,2.30302]
[1724295446110,2.81,2605.8,2605.5,2.30279]
[1724295446451,2.81,2605.8,2605.4,2.30284]
[1724295446766,2.81,2605.8,2605.2,2.30302]
[1724295446961,2.81,2605.8,2605.3,2.30296]
[1724295447164,2.81,2605.8,2605.4,4.60572]
[1724295447351,3.04,2606.2,2605.6,2.30272]
[1724295447559,3.04,2606.2,2605.6,2.30266]
[1724295448173,2.30247,2605.9,2605.2,2.30301]
[1724295448711,2.37928623,2605.8,2604.9,2.30333]
[1724295448882,2.3026,2605.8,2604.9,2.30328]
[1724295449083,0.47337862,2605.7,2605.0,2.30319]
[1724295449291,0.47337862,2605.7,2605.1,2.30315]
[1724295449770,2.3545,2605.9,2605.3,2.30294]
[1724295450194,5.34224,2606.2,2604.9,2.38006512]
[1724295450414,5.34224,2606.2,2605.6,2.30267]
[1724295450415,3.04,2606.2,2605.6,2.30267]
[1724295450924,3.04,2606.2,2605.8,2.30248]
[1724295451400,3.04,2606.2,2605.2,3.0]
[1724295451401,5.64621,2606.2,2605.2,5.30306]
[1724295451614,3.344,2606.2,2605.1,2.4579]
[1724295451777,3.344,2606.2,2605.5,2.30281]
[1724295453040,3.42068623,2606.2,2605.1,2.30313]
[1724295453193,2.30274,2605.6,2604.7,2.30348]
[1724295453394,2.533164,2605.5,2604.7,2.30348]
[1724295453599,2.30292,2605.4,2604.7,2.30348]
[1724295454119,5.533,2605.4,2604.2,2.3223]
[1724295454328,5.533,2605.4,2604.4,2.30372]
[1724295454547,0.65301363,2605.3,2604.4,2.30372]
[1724295454683,2.30316,2605.2,2604.4,2.30372]
[1724295454887,0.5763274,2605.3,2604.4,2.30372]